fUSD/lending_fUSD_20240812
["ID","MTS","AMOUNT","RATE_DAILY","PERIOD"]
[334664948,1723432241232,-530.97,0.000108,2]
[334664949,1723432241241,-150.0,0.000108,2]
[334664950,1723432241250,-150.0,0.000108,2]
[334664951,1723432241259,-835.34,0.000108,2]
[334664952,1723432241268,-421.01,0.000108,2]
[334664953,1723432241277,-150.0,0.00010835,2]
[334664954,1723432241286,-6600.61084839,0.000109,2]
[334664955,1723432242277,-3399.38915161,0.000109,2]
[334664956,1723432242287,-311.3119,0.000109,2]
[334664957,1723432242297,-214.7691,0.000109,2]
[334664958,1723432242307,-5566.487,0.000109,2]
[334664959,1723432242317,-418.01380806,0.000109,2]
[334664960,1723432242327,-319.98016702,0.000109,2]
[334664961,1723432242337,-322.9,0.00010959,2]
[334664962,1723432242346,-269.09,0.00010959,2]
[334664963,1723432242356,-224.24,0.00010959,2]
[334664964,1723432242365,-186.87,0.00010959,2]
[334664965,1723432242375,-150.0,0.0001097,2]
[334664966,1723432242384,-150.097,0.0001097,2]
[334664967,1723432242393,-163.34208761,0.00010997,2]
[334664968,1723432242403,-173.24796933,0.00010999,2]
[334664969,1723432242417,-55184.99089889,0.00011,2]
[334664970,1723432242429,-1883.1509744,0.00011,2]
[334664988,1723432243924,-530.97,0.000106,2]
[334664989,1723432243934,-10000.0,0.000109,2]
[334664990,1723432243944,-155.72,0.00010959,2]
[334664991,1723432243954,-5123.13604304,0.00011,2]
[334664992,1723432243964,-1001.58493591,0.00011,2]
[334664993,1723432243975,-571687.64179567,0.00011,2]
[334664994,1723432243986,-1343.386,0.00011,2]
[334664995,1723432243996,-755.0,0.00011,2]
[334664996,1723432244006,-250.0,0.00011,2]
[334664997,1723432244015,-136713.54201575,0.00011,2]
[334665008,1723432246168,-10000.0,0.000109,2]
[334665010,1723432246178,-12877.11675184,0.00011,2]
[334665012,1723432246394,-678.72349785,0.00011,2]
[334665013,1723432246406,-1134.13449414,0.00011,2]
[334665014,1723432246419,-850.03340466,0.00011,2]
[334665016,1723432246597,-1882.6076648,0.00011,2]
[334665048,1723432586630,318.56,8.219e-05,2]
[334665051,1723432615099,227.76686171,8.219e-05,2]
[334665061,1723432725611,227.76686171,8.219e-05,2]
[334665089,1723433092985,312.78,8.219e-05,2]
[334665143,1723433420636,200.0,8.219e-05,2]
[334665144,1723433421396,200.0,8.219e-05,2]
[334665145,1723433421728,200.0,8.219e-05,2]
[334665146,1723433422080,200.0,8.219e-05,2]
[334665147,1723433422420,249.0,8.219e-05,2]
[334665159,1723433434132,-301.85096891,9.94e-05,2]
[334665160,1723433434144,-1154.87828176,9.94e-05,2]
[334665161,1723433434157,-2234.92574323,9.94e-05,2]
[334665162,1723433434169,-1176.54113897,9.94e-05,2]
[334665163,1723433434179,-2163.4801974,9.962e-05,2]
[334665184,1723433440594,-222.70450229,9.962e-05,2]
[334665185,1723433440603,-925.23922794,9.962e-05,2]
[334665186,1723433440615,-896.82497611,9.962e-05,2]
[334665187,1723433440626,-383.57266039,9.962e-05,2]
[334665188,1723433440638,-180.54783525,9.962e-05,2]
[334665189,1723433440648,-153.27109261,0.0001,2]
[334665190,1723433440659,-396.72890739,0.0001,2]
[334665191,1723433440668,-300.0,0.0001004,2]
[334665192,1723433440678,-2756.49191081,0.00010049,2]
[334665193,1723433440689,-1467.29741007,0.00010049,2]
[334665194,1723433440701,-875.6832297,0.00010049,2]
[334665195,1723433440712,-460.63094984,0.00010049,2]
[334665196,1723433440724,-443.95353419,0.00010049,2]
[334665197,1723433440735,-5575.2864265,0.00010049,2]
[334665198,1723433440746,-2953.92775596,0.00010049,2]
[334665199,1723433440813,-6223.97878293,0.00010049,2]
[334665200,1723433440822,-250.0,0.00010062,2]
[334665201,1723433440831,-165.27,0.00010089,2]
[334665202,1723433440840,-1000.0,0.00010291,2]
[334665203,1723433440850,-312.78,0.00010482,2]
[334665204,1723433440859,-154.32440357,0.00010755,2]
[334665205,1723433440869,-150.0,0.00010784,2]
[334665206,1723433440877,-421.01,0.000108,2]
[334665207,1723433440886,-301.1,0.000108,2]
[334665208,1723433440895,-421.01,0.000108,2]
[334665209,1723433440904,-499.99,0.000108,2]
[334665210,1723433440914,-320.83943409,0.00010899,2]
[334665211,1723433440923,-5727.1428,0.000109,2]
[334665212,1723433440932,-10000.0,0.000109,2]
[334665213,1723433440941,-529.92,0.000109,2]
[334665214,1723433440951,-421.01,0.000109,2]
[334665215,1723433440959,-2500.0,0.000109,2]
[334665216,1723433440969,-421.01,0.000109,2]
[334665217,1723433440978,-421.01,0.000109,2]
[334665218,1723433440987,-421.01,0.000109,2]
[334665219,1723433440996,-421.01,0.000109,2]
[334665220,1723433441005,-414.24564399,0.000109,2]
[334665221,1723433441014,-421.01,0.000109,2]
[334665222,1723433441025,-778.63,0.00010959,2]
[334665223,1723433441035,-1207.094,0.0001097,2]
[334665224,1723433441046,-291.395,0.0001097,2]
[334665225,1723433441055,-5147.665,0.0001097,2]
[334665226,1723433441064,-21751.0,0.0001097,2]
[334665227,1723433441073,-1676.262,0.0001097,2]
[334665228,1723433441082,-5840.0,0.0001097,2]
[334665229,1723433441091,-14323.3562497,0.00010997,2]
[334665230,1723433441100,-5454.3395428,0.00010997,2]
[334665231,1723433441112,-536.22779244,0.00010997,2]
[334665232,1723433441121,-46085.49343403,0.00010997,2]
[334665233,1723433442293,-293.25126922,0.00010997,2]
[334665235,1723433442342,-728.47108323,0.00010997,2]
[334665236,1723433442358,-264.4956,0.00010997,2]
[334665238,1723433443419,-1490.79089986,0.00010427,2]
[334665239,1723433443430,-772.82854254,0.00010427,2]
[334665240,1723433443441,-6914.38665787,0.00010427,2]
[334665241,1723433443455,-419.10287483,0.00010427,2]
[334665242,1723433443467,-332.28537817,0.00010427,2]
[334665243,1723433443479,-70.60564673,0.00010427,2]
[334665244,1723433443488,-297.76472054,0.0001097,2]
[334665279,1723433444070,-341.04,0.0001097,2]
[334665280,1723433446493,-305.67790285,0.00010427,2]
[334665281,1723433446502,-392.19527946,0.0001097,2]
[334665282,1723433446512,-1014.38514253,0.00010997,2]
[334665283,1723433446678,-5086.06840709,0.00010997,2]
[334665284,1723433446688,-173.24796933,0.00010999,2]
[334665285,1723433446697,-881.23355555,0.00011,2]
[334665286,1723433446709,-261.60174887,0.00011,2]
[334665287,1723433446720,-290.05976315,0.00011,2]
[334665288,1723433446731,-1744.32203037,0.00011,2]
[334665289,1723433446743,-417.95823573,0.00011,2]
[334665290,1723433446754,-20094.09728871,0.00011,2]
[334665291,1723433446773,-1483.94,0.00011,2]
[334665292,1723433446784,-283.49453764,0.00011,2]
[334665293,1723433446795,-434.012,0.00011,2]
[334665295,1723433446806,-1659.03154576,0.00011,2]
[334665296,1723433446817,-333.5134452,0.00011,2]
[334665297,1723433446836,-1436.62310369,0.00011,2]
[334665298,1723433446847,-500.0,0.00011,2]
[334665315,1723433541345,31.0,8.384e-05,2]
[334665316,1723433541370,269.77,8.384e-05,2]
[334665324,1723433645714,227.76686171,8.384e-05,2]
[334665360,1723434153724,294.4,8.219e-05,2]
[334665409,1723434506632,210.805,0.00027,120]
[334665411,1723434617375,287.92,8.219e-05,2]
[334665420,1723434632310,-494.0,9.706e-05,2]
[334665421,1723434632320,-229.82,9.707e-05,2]
[334665422,1723434632330,-250.0,9.707e-05,2]
[334665423,1723434632341,-2575.96,9.707e-05,2]
[334665424,1723434632350,-300.0,9.751e-05,2]
[334665425,1723434632361,-1272.66860203,9.752e-05,2]
[334665426,1723434632451,-493.94139797,9.752e-05,2]
[334665427,1723434632461,-185.76860203,9.752e-05,2]
[334665428,1723434632473,-279.69657276,9.752e-05,2]
[334665429,1723434632486,-662.54834617,9.752e-05,2]
[334665430,1723434632498,-17554.92647904,9.752e-05,2]
[334665431,1723434632507,-272.23,9.784e-05,2]
[334665432,1723434632517,-383.22558767,9.797e-05,2]
[334665433,1723434632529,-550.03441233,9.797e-05,2]
[334665434,1723434632539,-408.51,9.886e-05,2]
[334665435,1723434632548,-183.72,9.962e-05,2]
[334665436,1723434632558,-150.0,0.0001011,2]
[334665437,1723434632567,-499.99,0.00010134,2]
[334665438,1723434632578,-536.15262077,0.00010162,2]
[334665439,1723434632588,-155.07776397,0.00010162,2]
[334665440,1723434632598,-155.34212881,0.00010162,2]
[334665441,1723434632607,-303.95736794,0.00010162,2]
[334665442,1723434632616,-706.85197633,0.00010162,2]
[334665443,1723434632634,-89.46667541,0.00010162,2]
[334665444,1723434632644,-157.55,0.00010213,2]
[334665445,1723434632653,-464.58332459,0.00010228,2]
[334665446,1723434632665,-4353.56667541,0.00010228,2]
[334665447,1723434632674,-356.52,0.00010378,2]
[334665448,1723434632685,-356.52,0.00010378,2]
[334665449,1723434632695,-287.92,0.00010461,2]
[334665450,1723434632706,-356.52,0.00010478,2]
[334665451,1723434632717,-835.34,0.00010548,2]
[334665452,1723434632728,-866.43,0.0001065,2]
[334665453,1723434632739,-420.0,0.00010726,2]
[334665454,1723434632749,-591.87,0.00010774,2]
[334665455,1723434632762,-1184.77723083,0.0001078,2]
[334665456,1723434632772,-835.34,0.000108,2]
[334665457,1723434632783,-5269.83879042,0.000108,2]
[334665458,1723434638425,-397.35795366,0.00010669,2]
[334665459,1723434638437,-602.64204634,0.00010669,2]
[334665460,1723434638446,-2259.46046322,0.000108,2]
[334665461,1723434638458,-2869.05284405,0.000108,2]
[334665462,1723434638516,-2454.81409501,0.000108,2]
[334665463,1723434638526,-150.0,0.00010822,2]
[334665464,1723434638535,-150.0,0.00010822,2]
[334665465,1723434638545,-285.37,0.000109,2]
[334665466,1723434638555,-528.5,0.000109,2]
[334665467,1723434638565,-300.0,0.000109,2]
[334665468,1723434638577,-317.59173277,0.000109,2]
[334665469,1723434638920,-103.41826723,0.000109,2]
[334665470,1723434638930,-150.0,0.000109,2]
[334665471,1723434638939,-835.34,0.000109,2]
[334665472,1723434638950,-288.75549069,0.000109,2]
[334665473,1723434638961,-193.915,0.0001097,2]
[334665475,1723434638971,-3302.6545738,0.00010997,2]
[334665477,1723434638980,-723.7165024,0.00010997,2]
[334665479,1723434638991,-113.36870933,0.00010997,2]
[334665480,1723434639002,-404.64145571,0.00010997,2]
[334665481,1723434639075,-0.23752273,0.00010997,2]
[334665482,1723434640296,-325.57201946,0.00010997,2]
[334665483,1723434640368,-2422.93774298,0.00010997,2]
[334665484,1723434640387,-1922.42255462,0.00010997,2]
[334665485,1723434640452,-388.79143244,0.00010997,2]
[334665486,1723434640464,-3467.25960671,0.00010997,2]
[334665487,1723434640680,-2713.43184032,0.00010997,2]
[334665488,1723434640690,-687.6723928,0.00010997,2]
[334665489,1723434640700,-153.99819496,0.00010999,2]
[334665490,1723434640709,-11290.46126314,0.00011,2]
[334665506,1723434643445,-255.90800826,9.962e-05,2]
[334665507,1723434643454,-29762.92250987,0.00011,2]
[334665508,1723434643464,-209883.20760102,0.00011,2]
[334665520,1723434646714,-319.31715993,0.00011,2]
[334665531,1723434663851,292.8418618,8.219e-05,2]
[334665532,1723434683523,155.60543979,8.219e-05,2]
[334665533,1723434709217,156.11322792,8.219e-05,2]
[334665534,1723434714758,6390.33278607,8.219e-05,2]
[334665535,1723434716969,159.92779602,8.219e-05,2]
[334665536,1723434840794,295.51331365,8.219e-05,2]
[334665537,1723434840823,69.66597334,8.219e-05,2]
[334665539,1723435098711,279.32,8.413e-05,2]
[334665540,1723435142815,394.32456616,8.413e-05,2]
[334665542,1723435395964,1778.46230686,0.00027,120]
[334665544,1723435426020,420.58061673,0.00027,120]
[334665545,1723435438883,1167.80774371,8.413e-05,2]
[334665546,1723435438910,2200.76666722,8.413e-05,2]
[334665547,1723435438941,1956.8020767,8.413e-05,2]
[334665548,1723435438967,303.6920554,8.413e-05,2]
[334665549,1723435438993,1965.01392729,8.413e-05,2]
[334665572,1723435750520,276.71,8.219e-05,2]
[334665604,1723435831458,-150.0,9.888e-05,2]
[334665606,1723435831468,-1571.43589271,9.959e-05,2]
[334665609,1723435831478,-550.0,0.0001,2]
[334665612,1723435831487,-676.31410729,0.0001,2]
[334665624,1723435831565,-659.37087837,0.0001,2]
[334665626,1723435831577,-235.75090707,0.0001,2]
[334665627,1723435831587,-583.0735381,0.00010017,2]
[334665628,1723435831598,-757.13168339,0.00010017,2]
[334665629,1723435831621,-231.23067122,0.00010017,2]
[334665630,1723435831630,-199.53,0.00010092,2]
[334665631,1723435831639,-800.0,0.00010117,2]
[334665633,1723435831649,-193.0,0.00010196,2]
[334665635,1723435831659,-370.6401271,0.00010197,2]
[334665636,1723435831668,-1257.5209126,0.00010197,2]
[334665637,1723435831678,-1141.94738341,0.00010197,2]
[334665638,1723435831687,-196.34672453,0.00010197,2]
[334665674,1723435837474,-334.79344747,0.00010197,2]
[334665675,1723435837484,-522.85661593,0.00010197,2]
[334665676,1723435837493,-265.14,0.00010207,2]
[334665677,1723435837502,-200.0,0.00010285,2]
[334665678,1723435837511,-250.0,0.00010302,2]
[334665679,1723435837521,-300.0,0.00010478,2]
[334665680,1723435837531,-120.28820075,0.00010478,2]
[334665681,1723435837555,-29.71179925,0.00010478,2]
[334665682,1723435837564,-252.92320075,0.00010478,2]
[334665683,1723435837575,-103.59679925,0.00010478,2]
[334665684,1723435837584,-150.0,0.00010478,2]
[334665685,1723435837593,-95.59585077,0.00010478,2]
[334665686,1723435837638,-241.39414923,0.00010478,2]
[334665687,1723435837647,-499.99,0.00010478,2]
[334665688,1723435837656,-150.0,0.00010478,2]
[334665689,1723435837665,-150.0,0.00010478,2]
[334665690,1723435837674,-150.0,0.00010478,2]
[334665691,1723435837683,-150.0,0.00010478,2]
[334665692,1723435837693,-276.71,0.00010483,2]
[334665693,1723435837702,-356.52,0.000105,2]
[334665694,1723435837713,-150.0,0.000105,2]
[334665695,1723435837722,-150.0,0.000105,2]
[334665696,1723435837731,-1270.6184336,0.000107,2]
[334665697,1723435837852,-150.2015664,0.000107,2]
[334665698,1723435837862,-357.17,0.00010752,2]
[334665699,1723435837871,-1000.0,0.000109,2]
[334665700,1723435837881,-200.47,0.00010929,2]
[334665701,1723435837892,-150.0,0.0001097,2]
[334665702,1723435837902,-154.02485016,0.00010986,2]
[334665703,1723435837911,-534.03358344,0.00010997,2]
[334665726,1723435839641,-254.71,0.00010997,2]
[334665791,1723435843057,-614.12546576,0.00010997,2]
[334665792,1723435843068,-7177.88469499,0.00010997,2]
[334665793,1723435843079,-2117.94879541,0.00010997,2]
[334665794,1723435843111,-3723.7447594,0.00010997,2]
[334665795,1723435843121,-150.01,0.00010999,2]
[334665796,1723435843130,-150.0,0.00010999,2]
[334665797,1723435843140,-150.0,0.00010999,7]
[334665798,1723435843149,-150.0,0.00010999,7]
[334665799,1723435843159,-150.0,0.00010999,7]
[334665800,1723435843168,-150.0,0.00010999,7]
[334665801,1723435843177,-150.0,0.00010999,7]
[334665802,1723435843187,-150.0,0.00010999,7]
[334665803,1723435843196,-150.0,0.00010999,7]
[334665804,1723435843206,-150.2925939,0.00010999,7]
[334665805,1723435843215,-36612.09523149,0.00011,2]
[334665806,1723435843225,-197967.62414681,0.00011,2]
[334665807,1723435843240,-1257.99548884,0.00011,2]
[334665813,1723435845668,-1504.4640098,0.000109,2]
[334665819,1723435845726,-1261.57350449,0.000109,2]
[334665829,1723435845833,-1003.68,0.000109,2]
[334665830,1723435845995,-2329.83018571,0.000109,2]
[334665831,1723435846005,-20098.03656237,0.00011,2]
[334665848,1723436230207,1154.64,8.219e-05,2]
[334665849,1723436241202,200.1332854,9.602e-05,2]
[334665850,1723436284096,183716.80201461,9.602e-05,2]
[334665851,1723436291826,227.76686171,9.602e-05,2]
[334665852,1723436293023,276.19871801,9.602e-05,2]
[334665853,1723436294384,1371.53060413,9.602e-05,2]
[334665854,1723436294960,291.63481853,9.602e-05,2]
[334665855,1723436299990,1225.57005499,9.602e-05,2]
[334665856,1723436304902,364.05825295,9.602e-05,2]
[334665857,1723436307014,973.59028936,9.602e-05,2]
[334665858,1723436308365,155.0,9.602e-05,2]
[334665859,1723436309377,1371.53060413,9.602e-05,2]
[334665860,1723436310180,614.52814733,9.602e-05,2]
[334665861,1723436311838,57.01634885,9.602e-05,2]
[334665862,1723436311861,816.54251427,9.602e-05,2]
[334665863,1723436317562,1291.03457579,9.602e-05,2]
[334665864,1723436318891,411.97488387,9.602e-05,2]
[334665865,1723436322423,155.19416731,9.602e-05,2]
[334665866,1723436322452,973.59028936,9.602e-05,2]
[334665867,1723436322511,159.08001152,9.602e-05,2]
[334665868,1723436326933,761.48724421,9.602e-05,2]
[334665869,1723436327228,295.94058649,9.602e-05,2]
[334665870,1723436327963,160.59778753,9.602e-05,2]
[334665871,1723436330816,155.21837558,9.602e-05,2]
[334665872,1723436336462,1269.05432873,9.602e-05,2]
[334665873,1723436338510,694.20229973,9.602e-05,2]
[334665874,1723436338545,155.16682758,9.602e-05,2]
[334665875,1723436338679,155.45361423,9.602e-05,2]
[334665877,1723436396979,291.63481853,9.602e-05,2]
[334665878,1723436402331,227.76686171,9.602e-05,2]
[334665879,1723436403020,150.0,9.602e-05,2]
[334665880,1723436403225,150.0,9.602e-05,2]
[334665881,1723436403413,150.0,9.602e-05,2]
[334665882,1723436403622,150.0,9.602e-05,2]
[334665883,1723436403822,150.0,9.602e-05,2]
[334665884,1723436404017,150.0,9.602e-05,2]
[334665885,1723436404235,150.0,9.602e-05,2]
[334665886,1723436404446,150.0,9.602e-05,2]
[334665887,1723436404622,150.0,9.602e-05,2]
[334665888,1723436405045,150.0,9.602e-05,2]
[334665889,1723436405243,150.0,9.602e-05,2]
[334665890,1723436405438,150.46729104,9.602e-05,2]
[334665891,1723436407920,364.05825295,9.602e-05,2]
[334665892,1723436413342,227.76686171,9.602e-05,2]
[334665893,1723436414370,155.26313475,9.602e-05,2]
[334665894,1723436426873,412.68508983,9.602e-05,2]
[334665896,1723436429391,1371.53060413,9.602e-05,2]
[334665897,1723436438023,973.59028936,9.602e-05,2]
[334665898,1723436442458,440.1463351,9.602e-05,2]
[334665899,1723436446568,159.08001152,9.602e-05,2]
[334665900,1723436482925,482.13510027,9.602e-05,2]
[334665901,1723436486487,361.17451943,9.602e-05,2]
[334665903,1723436530543,1868.69537306,9.602e-05,2]
[334665904,1723436533340,227.76686171,9.602e-05,2]
[334665905,1723436534573,305.33591463,9.602e-05,2]
[334665906,1723436535085,5784.33456951,9.602e-05,2]
[334665907,1723436542048,172.11960554,5e-05,2]
[334665908,1723436553713,640.0,9.602e-05,2]
[334665909,1723436556372,155.0,9.602e-05,2]
[334665910,1723436560541,1868.69537306,9.602e-05,2]
[334665911,1723436566528,817.55996027,9.602e-05,2]
[334665912,1723436568763,701.71411869,5e-05,2]
[334665913,1723436568904,7579.82881647,5e-05,2]
[334665914,1723436569310,220.13564815,5e-05,2]
[334665915,1723436569507,200.0016965,5e-05,2]
[334665916,1723436569946,1459.59888718,5e-05,2]
[334665917,1723436569994,291.63481853,9.602e-05,2]
[334665918,1723436570798,165.49,9.608e-05,2]
[334665919,1723436571564,819.29601429,9.602e-05,2]
[334665920,1723436572085,305.33591463,6.061e-05,2]
[334665921,1723436572897,411.97488387,5e-05,2]
[334665922,1723436574056,268.42929702,5e-05,2]
[334665923,1723436574520,3325.14355523,5e-05,2]
[334665924,1723436574796,872.38896969,5e-05,2]
[334665925,1723436574850,14360.36510736,5e-05,2]
[334665926,1723436578700,155.0,5e-05,2]
[334665927,1723436581340,155.0,5e-05,2]
[334665928,1723436582488,291.63481853,5e-05,2]
[334665929,1723436582562,180.51164459,5e-05,2]
[334665930,1723436582926,364.05825295,5e-05,2]
[334665931,1723436585844,227.76686171,6.061e-05,2]
[334665932,1723436587819,155.19633026,5e-05,2]
[334665933,1723436587985,155.0,5e-05,2]
[334665934,1723436588519,485.6993547,5e-05,2]
[334665935,1723436589159,858.15054926,5e-05,2]
[334665936,1723436589789,872.38896969,5e-05,2]
[334665937,1723436590852,14360.36510736,5e-05,2]
[334665938,1723436592741,295.26451044,5e-05,2]
[334665939,1723436594305,197.0,7.705e-05,2]
[334665940,1723436594539,197.0,8.475e-05,2]
[334665941,1723436594735,197.0,9.246e-05,2]
[334665942,1723436596333,155.0,5e-05,2]
[334665943,1723436596546,817.55996027,5e-05,2]
[334665944,1723436598504,1223.89523949,5e-05,2]
[334665945,1723436600631,1852.42,9.639e-05,2]
[334665946,1723436601054,973.59028936,6.061e-05,2]
[334665947,1723436601198,1310.27450456,5e-05,2]
[334665948,1723436604878,155.0,6.061e-05,2]
[334665949,1723436609328,220.13564815,6.061e-05,2]
[334665950,1723436609518,693.27901704,5e-05,2]
[334665951,1723436611395,1170.11813305,6.061e-05,2]
[334665952,1723436613955,155.0,5e-05,2]
[334665953,1723436615947,364.05825295,6.061e-05,2]
[334665954,1723436617084,159.08001152,6.061e-05,2]
[334665955,1723436618222,155.0,6.061e-05,2]
[334665956,1723436619947,760.45102022,6.061e-05,2]
[334665957,1723436620619,2278.56980783,6.061e-05,2]
[334665958,1723436620876,326.97808587,9.591e-05,2]
[334665959,1723436622425,155.0,6.061e-05,2]
[334665960,1723436624899,411.97488387,6.061e-05,2]
[334665961,1723436625302,872.38896969,6.061e-05,2]
[334665962,1723436625496,155.0,6.061e-05,2]
[334665963,1723436625853,14360.36510736,6.061e-05,2]
[334665964,1723436625883,227.76686171,6.061e-05,2]
[334665965,1723436631997,1223.89523949,6.061e-05,2]
[334665966,1723436638819,155.0,6.061e-05,2]
[334665967,1723436642035,485.6993547,6.061e-05,2]
[334665968,1723436644025,291.63481853,6.061e-05,2]
[334665969,1723436651036,425.9487393,6.061e-05,2]
[334665970,1723436651721,767.05,9.641e-05,2]
[334665971,1723436652954,364.05825295,6.061e-05,2]
[334665972,1723436653021,693.27901704,6.061e-05,2]
[334665973,1723436654162,819.68,9.624e-05,2]
[334665974,1723436654892,1310.27450456,6.061e-05,2]
[334665975,1723436655042,155.0,6.061e-05,2]
[334665976,1723436655322,155.0,6.061e-05,2]
[334665977,1723436656883,155.0,6.061e-05,2]
[334665978,1723436661053,155.0,6.061e-05,2]
[334665979,1723436666017,1223.89523949,7.347e-05,2]
[334665980,1723436669212,201.26651,7.347e-05,2]
[334665981,1723436670896,411.97488387,6.061e-05,2]
[334665982,1723436672050,973.59028936,6.061e-05,2]
[334665983,1723436675648,155.0,7.347e-05,2]
[334665984,1723436675995,760.45102022,6.061e-05,2]
[334665985,1723436682388,485.6993547,7.347e-05,2]
[334665986,1723436689097,159.08001152,7.347e-05,2]
[334665987,1723436689674,313.21,9.624e-05,2]
[334665989,1723436703021,693.27901704,7.347e-05,2]
[334665990,1723436703913,227.76686171,7.347e-05,2]
[334665991,1723436704698,1310.27450456,7.347e-05,2]
[334665992,1723436706071,155.0,7.347e-05,2]
[334665993,1723436710995,291.63481853,7.347e-05,2]
[334665994,1723436711849,155.0,7.347e-05,2]
[334665995,1723436712321,872.38896969,7.347e-05,2]
[334665996,1723436714876,1074.52518363,7.347e-05,2]
[334665997,1723436715341,155.0,7.347e-05,2]
[334665998,1723436721947,364.05825295,7.347e-05,2]
[334665999,1723436731055,425.9487393,7.347e-05,2]
[334666000,1723436731089,155.0,7.347e-05,2]
[334666001,1723436731880,155.0,7.347e-05,2]
[334666002,1723436734955,760.45102022,8.905e-05,2]
[334666003,1723436740912,411.97488387,8.905e-05,2]
[334666004,1723436741013,1223.89523949,8.905e-05,2]
[334666005,1723436744820,725.7761,9.632e-05,2]
[334666006,1723436749062,1364.54,8.219e-05,2]
[334666007,1723436753043,485.6993547,8.905e-05,2]
[334666008,1723436754708,816.85928957,8.905e-05,2]
[334666009,1723436755981,979.28008244,6.94e-05,2]
[334666010,1723436773037,693.27901704,8.905e-05,2]
[334666011,1723436777070,158.99370788,8.905e-05,2]
[334666012,1723436778228,591.57,9.613e-05,2]
[334666013,1723436791056,973.59028936,8.412e-05,2]
[334666017,1723436825472,500.0,9.606e-05,2]
[334666018,1723436829107,159.08001152,8.412e-05,2]
[334666019,1723436831466,291.63481853,8.412e-05,2]
[334666020,1723436833323,872.38896969,8.412e-05,2]
[334666021,1723436834863,227.76686171,8.412e-05,2]
[334666023,1723436842050,155.0,8.412e-05,2]
[334666024,1723436842079,425.9487393,8.412e-05,2]
[334666025,1723436845339,155.0,8.412e-05,2]
[334666026,1723436845832,155.0,8.412e-05,2]
[334666027,1723436882995,155.0,8.412e-05,2]
[334666028,1723436886084,151.18,8.219e-05,2]
[334666030,1723436907337,250.0,9.56e-05,2]
[334666032,1723436931435,9313.67,9.597e-05,2]
[334666034,1723436942725,-945.28250381,9.672e-05,2]
[334666040,1723436947009,23900.0,9.619e-05,2]
[334666046,1723436979026,155.0,9.597e-05,2]
[334666049,1723436996691,155.0,9.597e-05,2]
[334666070,1723437031808,-200.0,9.669e-05,2]
[334666071,1723437031817,-314.90749619,9.672e-05,2]
[334666072,1723437031836,-942.1,9.687e-05,2]
[334666073,1723437031849,-480.97,9.709e-05,2]
[334666074,1723437031859,-200.0,9.788e-05,2]
[334666075,1723437031869,-215.64,9.788e-05,2]
[334666076,1723437031878,-240.37,9.854e-05,2]
[334666077,1723437031887,-391.46,9.911e-05,2]
[334666078,1723437031896,-300.0,9.911e-05,2]
[334666079,1723437031906,-6883.08,9.912e-05,2]
[334666080,1723437031915,-499.99,9.912e-05,2]
[334666081,1723437031924,-6721.2,9.912e-05,2]
[334666082,1723437031934,-1679.21,9.92e-05,2]
[334666083,1723437031943,-173.85,9.933e-05,2]
[334666084,1723437031953,-360.0,9.948e-05,2]
[334666085,1723437031963,-299.99,9.986e-05,2]
[334666086,1723437031972,-150.0,9.999e-05,2]
[334666087,1723437031982,-550.0,0.0001,2]
[334666088,1723437031991,-1133.41659784,0.0001,2]
[334666089,1723437032002,-1904.64529424,0.0001,2]
[334666090,1723437032014,-2019.02952842,0.0001,2]
[334666091,1723437032025,-500.0,0.0001,2]
[334666092,1723437032069,-1362.46509023,0.0001,2]
[334666093,1723437032079,-197.0,0.00010016,2]
[334666094,1723437032089,-155.0,0.00010196,2]
[334666095,1723437032098,-364.05825295,0.00010196,2]